[Event "*** Titled Tuesday Blitz"]
[Site "Chess.com"]
[Date "2020.05.12"]
[Round "2"]
[White "Mazanchenko_Dmitry"]
[Black "Thee-Chessboy"]
[Result "0-1"]
[WhiteElo "2124"]
[BlackElo "2408"]
[TimeControl "180+1"]
[EndTime "10:19:17 PDT"]
[Termination "Thee-Chessboy won on time"]

1. e4 {[%clk 0:02:42.4]} 1... c5 {[%clk 0:02:59.1]} 2. Ne2 {[%clk 0:02:31.5]}
2... d6 {[%clk 0:02:57.3]} 3. Nbc3 {[%clk 0:02:29.8]} 3... Nf6 {[%clk 0:02:57]}
4. g3 {[%clk 0:02:24.7]} 4... a6 {[%clk 0:02:56.8]} 5. a4 {[%clk 0:02:23.9]}
5... b6 {[%clk 0:02:55.8]} 6. Bg2 {[%clk 0:02:23.3]} 6... Bb7 {[%clk 0:02:55.9]}
7. O-O {[%clk 0:02:23.5]} 7... e6 {[%clk 0:02:54.1]} 8. d3 {[%clk 0:02:22.3]}
8... Be7 {[%clk 0:02:50.5]} 9. h3 {[%clk 0:02:21.1]} 9... Qc7 {[%clk 0:02:50.2]}
10. f4 {[%clk 0:02:20.4]} 10... Nbd7 {[%clk 0:02:49]} 11. f5 {[%clk 0:02:18.7]}
11... e5 {[%clk 0:02:48]} 12. g4 {[%clk 0:02:17.3]} 12... h6 {[%clk 0:02:44.1]}
13. Ng3 {[%clk 0:02:16.5]} 13... O-O-O {[%clk 0:02:33.3]} 14. h4 {[%clk
0:01:50.6]} 14... Nh7 {[%clk 0:02:29.9]} 15. Nh5 {[%clk 0:01:46.5]} 15... g6
{[%clk 0:02:20.4]} 16. fxg6 {[%clk 0:01:45.5]} 16... fxg6 {[%clk 0:02:20.4]} 17.
Ng7 {[%clk 0:01:41.8]} 17... Ndf8 {[%clk 0:02:16.3]} 18. Bxh6 {[%clk 0:01:31.2]}
18... Bxh4 {[%clk 0:02:14.2]} 19. Nd5 {[%clk 0:01:24.1]} 19... Bxd5 {[%clk
0:02:09.1]} 20. exd5 {[%clk 0:01:25]} 20... Bg5 {[%clk 0:02:09.5]} 21. Bxg5
{[%clk 0:01:19.5]} 21... Nxg5 {[%clk 0:02:09.8]} 22. Ne6 {[%clk 0:01:20.4]}
22... Nfxe6 {[%clk 0:02:03]} 23. dxe6 {[%clk 0:01:21.3]} 23... Qh7 {[%clk
0:01:58.3]} 24. Rf7 {[%clk 0:01:12.6]} 24... Qh2+ {[%clk 0:01:54.1]} 25. Kf1
{[%clk 0:00:48.6]} 25... Nxf7 {[%clk 0:01:52.9]} 26. Qf3 {[%clk 0:00:28.4]}
26... Qf4 {[%clk 0:01:49]} 27. exf7 {[%clk 0:00:20.2]} 27... d5 {[%clk
0:01:25.3]} 28. Qxf4 {[%clk 0:00:14.9]} 28... exf4 {[%clk 0:01:23.7]} 29. c4
{[%clk 0:00:15.8]} 29... dxc4 {[%clk 0:01:18.1]} 30. dxc4 {[%clk 0:00:16.7]}
30... g5 {[%clk 0:01:16.2]} 31. Bd5 {[%clk 0:00:15.8]} 31... Kd7 {[%clk
0:01:10.2]} 32. Re1 {[%clk 0:00:14.4]} 32... Rdf8 {[%clk 0:01:06.5]} 33. Re5
{[%clk 0:00:13.3]} 33... Rh3 {[%clk 0:00:56.8]} 34. Rxg5 {[%clk 0:00:10.4]}
34... Rg3 {[%clk 0:00:56.8]} 35. Kf2 {[%clk 0:00:09.8]} 35... Rb3 {[%clk
0:00:52.3]} 36. Rg7 {[%clk 0:00:08.9]} 36... Ke7 {[%clk 0:00:50.5]} 37. g5
{[%clk 0:00:07.3]} 37... Rg3 {[%clk 0:00:49.3]} 38. g6 {[%clk 0:00:06.6]} 38...
Kf6 {[%clk 0:00:48]} 39. Rg8 {[%clk 0:00:06]} 39... Ke7 {[%clk 0:00:45.5]} 40.
g7 {[%clk 0:00:05.6]} 40... Rxf7 {[%clk 0:00:43.9]} 41. Bxf7 {[%clk 0:00:04.7]}
41... Kxf7 {[%clk 0:00:44.8]} 42. Rf8+ {[%clk 0:00:04.2]} 42... Kxg7 {[%clk
0:00:43.1]} 43. Rxf4 {[%clk 0:00:05.1]} 43... Rb3 {[%clk 0:00:43.1]} 44. Re4
{[%clk 0:00:03.4]} 44... Rxb2+ {[%clk 0:00:42.1]} 45. Kf3 {[%clk 0:00:03.7]}
45... Rb4 {[%clk 0:00:42.6]} 46. Re6 {[%clk 0:00:01.7]} 46... Kf7 {[%clk
0:00:41.1]} 47. Rd6 {[%clk 0:00:01.3]} 47... Ke7 {[%clk 0:00:41]} 48. Rh6 {[%clk
0:00:01.3]} 48... Kd7 {[%clk 0:00:40.9]} 49. Ke4 {[%clk 0:00:01.8]} 49... Kc7
{[%clk 0:00:40.9]} 50. Kd5 {[%clk 0:00:02.7]} 50... Rxa4 {[%clk 0:00:40.7]} 51.
Rh7+ {[%clk 0:00:03.6]} 51... Kd8 {[%clk 0:00:39.7]} 52. Kc6 {[%clk 0:00:04.5]}
52... Rb4 {[%clk 0:00:39]} 53. Rh8+ {[%clk 0:00:03.7]} 53... Ke7 {[%clk
0:00:38.6]} 54. Ra8 {[%clk 0:00:04.6]} 54... a5 {[%clk 0:00:38.6]} 55. Ra6
{[%clk 0:00:04.1]} 55... a4 {[%clk 0:00:38.2]} 56. Ra7+ {[%clk 0:00:03.7]} 56...
Ke6 {[%clk 0:00:38.1]} 57. Ra6 {[%clk 0:00:03.2]} 57... Ke5 {[%clk 0:00:38.3]}
58. Ra7 {[%clk 0:00:02.8]} 58... Kd4 {[%clk 0:00:38.2]} 59. Ra6 {[%clk 0:00:02]}
59... Kxc4 {[%clk 0:00:38.3]} 0-1

[Event "*** Titled Tuesday Blitz"]
[Site "Chess.com"]
[Date "2020.05.12"]
[Round "2"]
[White "FLamps8"]
[Black "Sanan_Sjugirov"]
[Result "0-1"]
[WhiteElo "2563"]
[BlackElo "2928"]
[TimeControl "180+1"]
[EndTime "10:19:18 PDT"]
[Termination "Sanan_Sjugirov won by resignation"]

1. d4 {[%clk 0:03:00.9]} 1... Nf6 {[%clk 0:02:53.8]} 2. Nf3 {[%clk 0:03:00.2]}
2... d5 {[%clk 0:02:52.9]} 3. c4 {[%clk 0:03:00.1]} 3... e6 {[%clk 0:02:52.1]}
4. Nc3 {[%clk 0:02:59.3]} 4... c6 {[%clk 0:02:48.7]} 5. e3 {[%clk 0:02:59]} 5...
Nbd7 {[%clk 0:02:47.7]} 6. Qc2 {[%clk 0:02:59]} 6... b6 {[%clk 0:02:44]} 7. e4
{[%clk 0:02:56.6]} 7... dxe4 {[%clk 0:02:42.3]} 8. Nxe4 {[%clk 0:02:57.5]} 8...
Bb7 {[%clk 0:02:38.4]} 9. Bd3 {[%clk 0:02:56.7]} 9... Be7 {[%clk 0:02:34.4]} 10.
Bf4 {[%clk 0:02:55.3]} 10... Nxe4 {[%clk 0:02:31.4]} 11. Bxe4 {[%clk 0:02:55]}
11... Nf6 {[%clk 0:02:31.2]} 12. Bd3 {[%clk 0:02:42.8]} 12... c5 {[%clk
0:02:27.2]} 13. Qa4+ {[%clk 0:02:32.2]} 13... Qd7 {[%clk 0:02:25.4]} 14. Qxd7+
{[%clk 0:02:31.4]} 14... Nxd7 {[%clk 0:02:26.3]} 15. dxc5 {[%clk 0:02:03.8]}
15... Nxc5 {[%clk 0:02:23.8]} 16. Bc2 {[%clk 0:02:01.8]} 16... Rd8 {[%clk
0:02:08.6]} 17. Rd1 {[%clk 0:01:57]} 17... Rxd1+ {[%clk 0:02:05]} 18. Kxd1
{[%clk 0:01:57.9]} 18... f6 {[%clk 0:01:29.5]} 19. Ke2 {[%clk 0:01:50.4]} 19...
Kf7 {[%clk 0:01:23.4]} 20. Rd1 {[%clk 0:01:37.8]} 20... e5 {[%clk 0:01:17.7]}
21. Be3 {[%clk 0:01:35.3]} 21... Ke6 {[%clk 0:01:08]} 22. b3 {[%clk 0:01:23]}
22... a5 {[%clk 0:01:06.7]} 23. h4 {[%clk 0:00:52]} 23... g6 {[%clk 0:01:02.7]}
24. h5 {[%clk 0:00:46.8]} 24... Rg8 {[%clk 0:00:57.8]} 25. hxg6 {[%clk
0:00:45.2]} 25... hxg6 {[%clk 0:00:58.7]} 26. Rh1 {[%clk 0:00:42.9]} 26... Ne4
{[%clk 0:00:38.3]} 27. Bxb6 {[%clk 0:00:32]} 27... a4 {[%clk 0:00:35]} 28. bxa4
{[%clk 0:00:14.7]} 28... Nc3+ {[%clk 0:00:34.1]} 29. Kd2 {[%clk 0:00:14.6]}
29... Nxa2 {[%clk 0:00:25.2]} 30. Bb3 {[%clk 0:00:14.1]} 30... Bb4+ {[%clk
0:00:19.1]} 31. Kc2 {[%clk 0:00:14]} 31... Nc3 {[%clk 0:00:16.8]} 32. c5+ {[%clk
0:00:12.9]} 32... Nd5 {[%clk 0:00:16.5]} 33. Nd2 {[%clk 0:00:11.3]} 33... Kf5
{[%clk 0:00:14.5]} 34. Nc4 {[%clk 0:00:10.7]} 34... Bc6 {[%clk 0:00:10.1]} 35.
a5 {[%clk 0:00:08.6]} 35... Ra8 {[%clk 0:00:08.3]} 36. Nd6+ {[%clk 0:00:07.9]}
36... Kg4 {[%clk 0:00:06.6]} 37. Rd1 {[%clk 0:00:08.1]} 37... Nc3 {[%clk
0:00:05.1]} 38. Rd3 {[%clk 0:00:07.6]} 38... Nb5 {[%clk 0:00:04.9]} 39. Rg3+
{[%clk 0:00:07.4]} 39... Kh5 {[%clk 0:00:04.8]} 40. Nxb5 {[%clk 0:00:06.8]}
40... Bxb5 {[%clk 0:00:05.7]} 41. Bf7 {[%clk 0:00:07]} 41... Bxa5 {[%clk
0:00:04.8]} 42. Bxg6+ {[%clk 0:00:06.8]} 42... Kh6 {[%clk 0:00:05.1]} 43. Bxa5
{[%clk 0:00:06.7]} 43... Rxa5 {[%clk 0:00:05.2]} 44. Bf7 {[%clk 0:00:07.2]}
44... Ba4+ {[%clk 0:00:05.5]} 45. Kb2 {[%clk 0:00:06.8]} 45... Rxc5 {[%clk
0:00:06.4]} 46. Rg6+ {[%clk 0:00:06.6]} 46... Kh7 {[%clk 0:00:07]} 47. Rxf6
{[%clk 0:00:07]} 47... Kg7 {[%clk 0:00:07.6]} 48. Rf3 {[%clk 0:00:06.9]} 48...
Bc6 {[%clk 0:00:07.7]} 49. Rf5 {[%clk 0:00:06.4]} 49... Be4 {[%clk 0:00:08]} 50.
Be6 {[%clk 0:00:03.2]} 50... Rc2+ {[%clk 0:00:06.5]} 51. Kb3 {[%clk 0:00:02.7]}
51... Bxf5 {[%clk 0:00:07.4]} 52. Bxf5 {[%clk 0:00:03.5]} 52... Rxf2 {[%clk
0:00:07.8]} 53. Be4 {[%clk 0:00:03.8]} 53... Kf6 {[%clk 0:00:07.9]} 54. Kc4
{[%clk 0:00:03.8]} 54... Rd2 {[%clk 0:00:08.3]} 55. g3 {[%clk 0:00:02.9]} 55...
Rd4+ {[%clk 0:00:08.3]} 0-1

[Event "*** Titled Tuesday Blitz"]
[Site "Chess.com"]
[Date "2020.05.12"]
[Round "2"]
[White "enriquetejedor"]
[Black "theblitzchamp"]
[Result "0-1"]
[WhiteElo "2458"]
[BlackElo "2674"]
[TimeControl "180+1"]
[EndTime "10:19:20 PDT"]
[Termination "theblitzchamp won by resignation"]

1. e4 {[%clk 0:03:00.9]} 1... e5 {[%clk 0:02:58.9]} 2. Nf3 {[%clk 0:03:01.1]}
2... Nc6 {[%clk 0:02:59.3]} 3. Bb5 {[%clk 0:03:00.7]} 3... Nge7 {[%clk
0:02:59.5]} 4. O-O {[%clk 0:03:00.1]} 4... g6 {[%clk 0:02:59.5]} 5. c3 {[%clk
0:03:00.6]} 5... a6 {[%clk 0:02:58.7]} 6. Ba4 {[%clk 0:03:00.2]} 6... Bg7 {[%clk
0:02:58.5]} 7. d4 {[%clk 0:03:00.5]} 7... exd4 {[%clk 0:02:59.4]} 8. cxd4 {[%clk
0:03:01.4]} 8... b5 {[%clk 0:03:00.1]} 9. Bb3 {[%clk 0:03:01.3]} 9... O-O {[%clk
0:03:00.7]} 10. Nc3 {[%clk 0:02:57.9]} 10... d6 {[%clk 0:03:00.9]} 11. h3 {[%clk
0:02:57.7]} 11... Na5 {[%clk 0:03:00.8]} 12. Bc2 {[%clk 0:02:58]} 12... c5
{[%clk 0:03:01.1]} 13. b3 {[%clk 0:02:52.8]} 13... Nac6 {[%clk 0:02:43]} 14. Be3
{[%clk 0:02:51.6]} 14... Qc7 {[%clk 0:02:21.5]} 15. Rc1 {[%clk 0:02:43.6]} 15...
Bb7 {[%clk 0:01:57.3]} 16. dxc5 {[%clk 0:02:32.1]} 16... dxc5 {[%clk 0:01:50.6]}
17. Nd5 {[%clk 0:02:32.3]} 17... Nxd5 {[%clk 0:01:48]} 18. exd5 {[%clk
0:02:33.2]} 18... Nb4 {[%clk 0:01:40.4]} 19. Bxg6 {[%clk 0:02:21.3]} 19... fxg6
{[%clk 0:01:25.6]} 20. Bxc5 {[%clk 0:02:20.6]} 20... Nxa2 {[%clk 0:00:53.9]} 21.
Bxf8 {[%clk 0:02:17.4]} 21... Qxc1 {[%clk 0:00:53]} 22. Qe2 {[%clk 0:01:55.1]}
22... Qc3 {[%clk 0:00:39]} 23. Bxg7 {[%clk 0:00:23]} 23... Qxg7 {[%clk
0:00:36.7]} 24. Qxa2 {[%clk 0:00:23]} 24... Bxd5 {[%clk 0:00:36.8]} 25. Nd2
{[%clk 0:00:17.9]} 25... Qc3 {[%clk 0:00:29.7]} 26. Rd1 {[%clk 0:00:12.5]} 26...
a5 {[%clk 0:00:20.8]} 27. Qb1 {[%clk 0:00:12.7]} 27... Bf7 {[%clk 0:00:16.1]}
28. Ne4 {[%clk 0:00:10.4]} 28... Qe5 {[%clk 0:00:16]} 29. Re1 {[%clk 0:00:06]}
29... a4 {[%clk 0:00:15.3]} 30. bxa4 {[%clk 0:00:06.9]} 30... bxa4 {[%clk
0:00:15.4]} 31. Qb6 {[%clk 0:00:07.5]} 31... Kg7 {[%clk 0:00:14.2]} 32. f4
{[%clk 0:00:05.7]} 32... Qe7 {[%clk 0:00:08.5]} 33. Qd4+ {[%clk 0:00:05.3]}
33... Kf8 {[%clk 0:00:04.4]} 34. Ra1 {[%clk 0:00:03.5]} 34... Qa7 {[%clk
0:00:04]} 35. Nc5 {[%clk 0:00:03]} 35... Kg8 {[%clk 0:00:02.9]} 36. Kh2 {[%clk
0:00:03.3]} 36... a3 {[%clk 0:00:02.8]} 37. Qc3 {[%clk 0:00:03.1]} 37... a2
{[%clk 0:00:02.8]} 38. f5 {[%clk 0:00:03.1]} 38... Rc8 {[%clk 0:00:03.2]} 39.
fxg6 {[%clk 0:00:02.5]} 39... hxg6 {[%clk 0:00:04.1]} 40. Qf3 {[%clk 0:00:01.8]}
40... Qxc5 {[%clk 0:00:04.1]} 41. Rf1 {[%clk 0:00:02]} 41... Qe5+ {[%clk
0:00:04.4]} 42. Kg1 {[%clk 0:00:02.1]} 42... Qe6 {[%clk 0:00:04.8]} 43. Qf2
{[%clk 0:00:02.3]} 43... Qe7 {[%clk 0:00:03.5]} 44. h4 {[%clk 0:00:02.5]} 44...
Qc5 {[%clk 0:00:03.8]} 45. h5 {[%clk 0:00:02.2]} 45... Qxf2+ {[%clk 0:00:03.8]}
46. Kxf2 {[%clk 0:00:03.1]} 46... gxh5 {[%clk 0:00:04.2]} 47. Ra1 {[%clk
0:00:03]} 47... Rb8 {[%clk 0:00:04.5]} 48. Ke3 {[%clk 0:00:03.2]} 48... Rb1
{[%clk 0:00:04.8]} 49. Rxa2 {[%clk 0:00:04.1]} 49... Bxa2 {[%clk 0:00:04.4]} 50.
g4 {[%clk 0:00:05]} 50... Rb3+ {[%clk 0:00:04.7]} 51. Kf4 {[%clk 0:00:05.7]}
51... hxg4 {[%clk 0:00:05.3]} 52. Kxg4 {[%clk 0:00:06.6]} 52... Rb5 {[%clk
0:00:05.8]} 53. Kf4 {[%clk 0:00:07.5]} 53... Bf7 {[%clk 0:00:06.7]} 54. Ke4
{[%clk 0:00:08.4]} 54... Kg7 {[%clk 0:00:07.6]} 55. Kd4 {[%clk 0:00:09.3]} 55...
Rd5+ {[%clk 0:00:08.5]} 56. Ke4 {[%clk 0:00:09.7]} 56... Kf6 {[%clk 0:00:09.4]}
57. Kf4 {[%clk 0:00:10.2]} 57... Rd4+ {[%clk 0:00:09.8]} 58. Ke3 {[%clk
0:00:10.6]} 58... Ke5 {[%clk 0:00:10.7]} 59. Kf3 {[%clk 0:00:11.5]} 59... Be6
{[%clk 0:00:10.9]} 60. Ke3 {[%clk 0:00:12.4]} 60... Bf5 {[%clk 0:00:11.5]} 61.
Kf3 {[%clk 0:00:13.3]} 61... Rd3+ {[%clk 0:00:12.1]} 62. Ke2 {[%clk 0:00:13.8]}
62... Ke4 {[%clk 0:00:13]} 63. Kf2 {[%clk 0:00:14.7]} 63... Bg4 {[%clk
0:00:12.1]} 64. Kg2 {[%clk 0:00:15.6]} 64... Kf4 {[%clk 0:00:12.3]} 0-1

[Event "*** Titled Tuesday Blitz"]
[Site "Chess.com"]
[Date "2020.05.12"]
[Round "2"]
[White "mikolka1985"]
[Black "RianKapriaga"]
[Result "1-0"]
[WhiteElo "2604"]
[BlackElo "2211"]
[TimeControl "180+1"]
[EndTime "10:19:20 PDT"]
[Termination "mikolka1985 won by checkmate"]

1. d4 {[%clk 0:02:58.3]} 1... Nf6 {[%clk 0:02:59.4]} 2. c4 {[%clk 0:02:57]} 2...
e6 {[%clk 0:02:59.2]} 3. Nc3 {[%clk 0:02:55.8]} 3... Bb4 {[%clk 0:02:58.6]} 4.
f3 {[%clk 0:02:55.4]} 4... O-O {[%clk 0:02:57.7]} 5. a3 {[%clk 0:02:53.7]} 5...
Bxc3+ {[%clk 0:02:55.5]} 6. bxc3 {[%clk 0:02:51.7]} 6... Ne8 {[%clk 0:02:55.4]}
7. e4 {[%clk 0:02:50.9]} 7... b6 {[%clk 0:02:55.6]} 8. Nh3 {[%clk 0:02:49.8]}
8... Qh4+ {[%clk 0:02:50.8]} 9. g3 {[%clk 0:02:47.1]} 9... Qd8 {[%clk
0:02:44.1]} 10. Bd3 {[%clk 0:02:46]} 10... Bb7 {[%clk 0:02:43.2]} 11. e5 {[%clk
0:02:42.7]} 11... f5 {[%clk 0:02:32.3]} 12. exf6 {[%clk 0:02:38.8]} 12... Qxf6
{[%clk 0:02:25.5]} 13. O-O {[%clk 0:02:34.7]} 13... h6 {[%clk 0:02:09.7]} 14.
Nf4 {[%clk 0:02:28.6]} 14... Nc6 {[%clk 0:01:53.7]} 15. Bc2 {[%clk 0:02:23.7]}
15... Nd6 {[%clk 0:01:39.4]} 16. Qd3 {[%clk 0:02:22]} 16... Qf5 {[%clk
0:01:39.2]} 17. Qe2 {[%clk 0:02:20.2]} 17... Qf6 {[%clk 0:01:36.4]} 18. d5
{[%clk 0:02:02.2]} 18... Na5 {[%clk 0:01:26.4]} 19. dxe6 {[%clk 0:01:46.5]}
19... Rae8 {[%clk 0:01:26.6]} 20. Qd3 {[%clk 0:01:38.4]} 20... Qf5 {[%clk
0:01:26.5]} 21. Qxf5 {[%clk 0:01:36.6]} 21... Nxf5 {[%clk 0:01:26.2]} 22. exd7
{[%clk 0:01:35.5]} 22... Rd8 {[%clk 0:01:26.4]} 23. Ng6 {[%clk 0:01:34.4]} 23...
Nd6 {[%clk 0:01:05.7]} 24. Nxf8 {[%clk 0:01:29.3]} 24... Kxf8 {[%clk 0:01:05.9]}
25. c5 {[%clk 0:01:26.6]} 25... bxc5 {[%clk 0:01:03.1]} 26. Ba4 {[%clk
0:01:25.5]} 26... Bc6 {[%clk 0:00:47.2]} 27. Bxc6 {[%clk 0:01:22.8]} 27... Nxc6
{[%clk 0:00:47.7]} 28. Be3 {[%clk 0:01:21.5]} 28... c4 {[%clk 0:00:43.5]} 29.
Bc5 {[%clk 0:01:17.5]} 29... Rxd7 {[%clk 0:00:43.9]} 30. Rfe1 {[%clk 0:01:16.4]}
30... Kf7 {[%clk 0:00:43.5]} 31. Rad1 {[%clk 0:01:14.7]} 31... Na5 {[%clk
0:00:37.6]} 32. Bxd6 {[%clk 0:01:12.1]} 32... cxd6 {[%clk 0:00:36.8]} 33. Rd5
{[%clk 0:01:05.6]} 33... Nc6 {[%clk 0:00:34]} 34. Re4 {[%clk 0:01:02.7]} 34...
Ne7 {[%clk 0:00:30.9]} 35. Rd1 {[%clk 0:00:57.9]} 35... d5 {[%clk 0:00:30.8]}
36. Rxc4 {[%clk 0:00:56.7]} 36... Rb7 {[%clk 0:00:26.8]} 37. Rc5 {[%clk
0:00:54.8]} 37... Rb3 {[%clk 0:00:26.1]} 38. a4 {[%clk 0:00:53.2]} 38... h5
{[%clk 0:00:25.6]} 39. Rc7 {[%clk 0:00:50.9]} 39... Kf6 {[%clk 0:00:22.4]} 40.
Rd4 {[%clk 0:00:46.5]} 40... g5 {[%clk 0:00:17.4]} 41. Rb4 {[%clk 0:00:44.3]}
41... Ra3 {[%clk 0:00:16.7]} 42. Rbb7 {[%clk 0:00:42.8]} 42... Nf5 {[%clk
0:00:15.5]} 43. Rxa7 {[%clk 0:00:32.5]} 43... Ra1+ {[%clk 0:00:12.9]} 44. Kg2
{[%clk 0:00:25.9]} 44... Ne3+ {[%clk 0:00:12.3]} 45. Kf2 {[%clk 0:00:24.5]}
45... Nd1+ {[%clk 0:00:10.5]} 46. Ke2 {[%clk 0:00:24.2]} 46... d4 {[%clk
0:00:06.7]} 47. cxd4 {[%clk 0:00:17.8]} 47... Ra2+ {[%clk 0:00:06.2]} 48. Kxd1
{[%clk 0:00:16.4]} 48... Ra1+ {[%clk 0:00:06.5]} 49. Kc2 {[%clk 0:00:16.1]}
49... Ra2+ {[%clk 0:00:06.9]} 50. Kd3 {[%clk 0:00:15.9]} 50... Ra3+ {[%clk
0:00:07]} 51. Ke4 {[%clk 0:00:15.9]} 51... Ra1 {[%clk 0:00:07.2]} 52. Rc6#
{[%clk 0:00:14.2]} 1-0

[Event "*** Titled Tuesday Blitz"]
[Site "Chess.com"]
[Date "2020.05.12"]
[Round "2"]
[White "TengisChess"]
[Black "CarlosAlbornoz"]
[Result "0-1"]
[WhiteElo "2482"]
[BlackElo "2718"]
[TimeControl "180+1"]
[EndTime "10:19:23 PDT"]
[Termination "CarlosAlbornoz won by resignation"]

1. b3 {[%clk 0:02:57.9]} 1... Nf6 {[%clk 0:02:57.2]} 2. f4 {[%clk 0:02:57.6]}
2... g6 {[%clk 0:02:58]} 3. Bb2 {[%clk 0:02:57.7]} 3... Bg7 {[%clk 0:02:58.1]}
4. Nf3 {[%clk 0:02:57.9]} 4... O-O {[%clk 0:02:57.9]} 5. e3 {[%clk 0:02:58.2]}
5... c5 {[%clk 0:02:52.9]} 6. Be2 {[%clk 0:02:57.9]} 6... Nc6 {[%clk 0:02:50.9]}
7. O-O {[%clk 0:02:57.9]} 7... b6 {[%clk 0:02:49.6]} 8. Ne5 {[%clk 0:02:57]}
8... Bb7 {[%clk 0:02:49.2]} 9. Bf3 {[%clk 0:02:56.8]} 9... Qc7 {[%clk
0:02:48.6]} 10. Nxc6 {[%clk 0:02:56.2]} 10... Bxc6 {[%clk 0:02:47.6]} 11. d3
{[%clk 0:02:52.8]} 11... Rfd8 {[%clk 0:02:42.6]} 12. Nd2 {[%clk 0:02:51.2]}
12... Ng4 {[%clk 0:02:29.5]} 13. Bxg7 {[%clk 0:02:44.7]} 13... Nxe3 {[%clk
0:02:29.2]} 14. Be5 {[%clk 0:02:41.6]} 14... d6 {[%clk 0:02:24.1]} 15. Qe2
{[%clk 0:01:21.6]} 15... Nxf1 {[%clk 0:02:22.6]} 16. Rxf1 {[%clk 0:01:15]} 16...
Bxf3 {[%clk 0:02:12.3]} 17. Qxf3 {[%clk 0:01:09]} 17... dxe5 {[%clk 0:02:12.1]}
18. fxe5 {[%clk 0:01:09.9]} 18... Qxe5 {[%clk 0:01:57.2]} 19. Qxf7+ {[%clk
0:01:02]} 19... Kh8 {[%clk 0:01:57.1]} 20. Qf2 {[%clk 0:01:02.9]} 20... Qg7
{[%clk 0:01:42.4]} 21. Qe2 {[%clk 0:00:55.1]} 21... Rf8 {[%clk 0:01:40.8]} 22.
Nf3 {[%clk 0:00:52.9]} 22... Qf6 {[%clk 0:01:40.7]} 23. Re1 {[%clk 0:00:47.6]}
23... Rae8 {[%clk 0:01:37.6]} 24. Qe4 {[%clk 0:00:43.4]} 24... e5 {[%clk
0:01:32.5]} 25. a4 {[%clk 0:00:42.8]} 25... Qf4 {[%clk 0:01:28]} 26. Re2 {[%clk
0:00:41.1]} 26... Qc1+ {[%clk 0:01:13.9]} 27. Kf2 {[%clk 0:00:40.5]} 27... Qf4
{[%clk 0:01:06.3]} 28. Kg1 {[%clk 0:00:36.5]} 28... Qxe4 {[%clk 0:01:04]} 29.
Rxe4 {[%clk 0:00:37.4]} 29... Rf4 {[%clk 0:01:04.2]} 30. Re2 {[%clk 0:00:37.4]}
30... Kg7 {[%clk 0:00:54.6]} 31. Nd2 {[%clk 0:00:34.8]} 31... Rf5 {[%clk
0:00:51.1]} 32. g3 {[%clk 0:00:33.5]} 32... h5 {[%clk 0:00:49.1]} 33. Kg2 {[%clk
0:00:33.5]} 33... h4 {[%clk 0:00:48.2]} 34. Ne4 {[%clk 0:00:26]} 34... Rh8
{[%clk 0:00:43.6]} 35. g4 {[%clk 0:00:24.2]} 35... Rf4 {[%clk 0:00:42.2]} 36. h3
{[%clk 0:00:24]} 36... Rhf8 {[%clk 0:00:39.8]} 37. Re1 {[%clk 0:00:24.2]} 37...
Rf3 {[%clk 0:00:32.4]} 38. Rd1 {[%clk 0:00:23.4]} 38... Re3 {[%clk 0:00:27.1]}
39. Rd2 {[%clk 0:00:23.2]} 39... Rff3 {[%clk 0:00:25.6]} 40. Nf2 {[%clk
0:00:19.7]} 40... Rg3+ {[%clk 0:00:25]} 41. Kf1 {[%clk 0:00:20]} 41... Ref3
{[%clk 0:00:24.5]} 42. Re2 {[%clk 0:00:19.3]} 42... Rxh3 {[%clk 0:00:23.1]} 43.
Rxe5 {[%clk 0:00:19.3]} 43... Rh2 {[%clk 0:00:22.2]} 44. Re2 {[%clk 0:00:18.8]}
44... h3 {[%clk 0:00:21.3]} 45. Kg1 {[%clk 0:00:18.9]} 45... Rg2+ {[%clk
0:00:21.1]} 46. Kf1 {[%clk 0:00:19.3]} 46... Rfg3 {[%clk 0:00:20.1]} 47. Ne4
{[%clk 0:00:16.6]} 47... Rxe2 {[%clk 0:00:15.8]} 48. Kxe2 {[%clk 0:00:17.5]}
48... Rxg4 {[%clk 0:00:14.4]} 49. Kf3 {[%clk 0:00:14.5]} 49... Rh4 {[%clk
0:00:13]} 50. Nf2 {[%clk 0:00:13.3]} 50... h2 {[%clk 0:00:12.7]} 51. Nh1 {[%clk
0:00:13.8]} 51... g5 {[%clk 0:00:13]} 52. Kg3 {[%clk 0:00:13.4]} 52... Kf6
{[%clk 0:00:13.2]} 53. Kg2 {[%clk 0:00:13.4]} 53... Ke5 {[%clk 0:00:13.3]} 54.
c3 {[%clk 0:00:13.3]} 54... Kf4 {[%clk 0:00:12.5]} 55. d4 {[%clk 0:00:13.5]}
55... cxd4 {[%clk 0:00:12.5]} 56. cxd4 {[%clk 0:00:14.4]} 56... Ke4 {[%clk
0:00:12.8]} 57. Ng3+ {[%clk 0:00:14.1]} 57... Kxd4 {[%clk 0:00:12.7]} 58. Nf5+
{[%clk 0:00:14.5]} 58... Kc3 {[%clk 0:00:12.8]} 59. Nxh4 {[%clk 0:00:14.5]}
59... gxh4 {[%clk 0:00:12.9]} 60. Kxh2 {[%clk 0:00:15.4]} 60... Kxb3 {[%clk
0:00:13]} 61. a5 {[%clk 0:00:16.3]} 61... bxa5 {[%clk 0:00:13]} 0-1